[Event "4th Memorial Warakomska-B 2020"]
[Site "Suwalki"]
[Date "2020.08.10"]
[Round "6.6"]
[White "Sapinski, Sebastian"]
[Black "Obolonin, Filipp"]
[Result "1-0"]
[ECO "B41"]
[WhiteElo "1603"]
[BlackElo "1922"]
[Annotator "ChessBase"]
[PlyCount "67"]
[EventDate "2020.08.06"]
[EventType "swiss"]
[EventCountry "POL"]
[SourceTitle "playchess.com"]
[Source "ChessBase"]
[SourceQuality "1"]
[TimeControl "40/5400+30:1800+30"]

1. e4 {[%emt 0:00:00]} c5 {[%emt 0:03:24]} 2. Nf3 {[%emt 0:00:00]} a6 {[%emt 0:00:07]} 3. d4 {[%emt 0:00:00]} cxd4 {[%emt 0:00:04]} 4. Nxd4 {[%emt 0:00:00]} e6 {[%emt 0:00:12]} 5. c4 {[%emt 0:00:00]} Nf6 {[%emt 0:00:57]} 6. Nc3 {[%emt 0:00:03]} Nc6 {[%emt 0:00:18]} 7. Be3 {[%emt 0:04:51]} d6 {[%emt 0:00:38]} 8. f3 {[%emt 0:03:26]} Be7 {[%emt 0:01:03]} 9. Qd2 {[%emt 0:02:17]} Qc7 {[%emt 0:00:18]} 10. Rc1 {[%emt 0:01:25]} Bd7 {[%emt 0:00:16]} 11. Be2 {[%emt 0:04:55]} h5 {[%emt 0:03:35]} 12. a3 {[%emt 0:08:44]} Qb8 {[%emt 0:00:12]} 13. b4 {[%emt 0:05:42]} Ne5 {[%emt 0:20:20]} 14. Nb3 {[%emt 0:08:02]} O-O {[%emt 0:02:06]} 15. O-O {[%emt 0:06:56]} Rd8 {[%emt 0:00:42]} 16. Rfd1 {[%emt 0:07:05]} Qc7 {[%emt 0:09:38]} 17. Qd4 {[%emt 0:15:04]} Rdc8 {[%emt 0:13:30]} 18. Na5 {[%emt 0:02:57]} Nc6 {[%emt 0:02:06]} 19. Nxc6 {[%emt 0:00:21]} Bxc6 {[%emt 0:05:37]} 20. b5 {[%emt 0:03:23]} Be8 {[%emt 0:01:02]} 21. Na4 {[%emt 0:03:04]} Nd7 {[%emt 0:00:22]} 22. f4 {[%emt 0:06:15]} Nc5 {[%emt 0:03:22]} 23. Nxc5 {[%emt 0:00:43]} dxc5 {[%emt 0:00:06]} 24. Qb2 {[%emt 0:01:52]} axb5 {[%emt 0:01:26]} 25. cxb5 {[%emt 0:00:31]} Qa5 {[%emt 0:01:01]} 26. Bxh5 {[%emt 0:01:47]} Qxa3 {[%emt 0:00:47]} 27. Qf2 {[%emt 0:01:07]} Bxb5 {[%emt 0:00:41]} 28. f5 {[%emt 0:00:31]} exf5 {[%emt 0:00:15]} 29. exf5 {[%emt 0:01:46]} b6 {[%emt 0:02:49]} 30. Rb1 {[%emt 0:01:42]} Qa6 {[%emt 0:00:50]} 31. Qg3 {[%emt 0:01:41]} Be8 {[%emt 0:03:36]} 32. Bh6 {[%emt 0:00:49]} g6 33. fxg6 {[%emt 0:00:06]} f5 {[%emt 0:07:31]} 34. Qe5 {[%emt 0:03:59]} 1-0

[Event "4th Memorial Warakomska-B 2020"]
[Site "Suwalki"]
[Date "2020.08.10"]
[Round "6.7"]
[White "Widelski, Kacper"]
[Black "Ciszewski, Krzysztof"]
[Result "1-0"]
[ECO "B90"]
[WhiteElo "1879"]
[BlackElo "1728"]
[Annotator "NA"]
[PlyCount "63"]
[EventDate "2020.08.06"]
[EventType "swiss"]
[EventCountry "POL"]
[SourceTitle "playchess.com"]
[Source "ChessBase"]
[SourceQuality "1"]
[TimeControl "40/5400+30:1800+30"]

1. e4 {[%emt 0:00:31]} c5 {[%emt 0:00:00]} 2. Nf3 {[%emt 0:00:07]} d6 {[%emt 0:00:00]} 3. d4 {[%emt 0:00:04]} cxd4 {[%emt 0:00:00]} 4. Nxd4 {[%emt 0:00:05]} Nf6 {[%emt 0:00:00]} 5. Nc3 {[%emt 0:00:06]} a6 {[%emt 0:00:00]} 6. Bc4 {[%emt 0:00:05]} e6 {[%emt 0:00:10]} 7. O-O {[%emt 0:00:08]} Be7 {[%emt 0:00:50]} 8. a4 {[%emt 0:00:30]} Nc6 {[%emt 0:04:19]} 9. Be3 {[%emt 0:00:51]} Qc7 {[%emt 0:01:08]} 10. Qe2 {[%emt 0:05:16]} O-O {[%emt 0:02:29]} 11. Rad1 {[%emt 0:03:47] B88: Sicilian: Sozin Attack.} Ne5 {[%emt 0:12:27]} 12. Bb3 {[%emt 0:02:21] [#]} b6 $146 {[%emt 0:14:47]} ({Predecessor:} 12... Bd7 13. f4 Nc6 14. f5 e5 15. Nxc6 Bxc6 16. Bg5 Ne8 17. Bc1 Qd8 18. Nd5 Bxd5 19. Bxd5 {1-0 (61) Zierk,S (2391)-Mazur,S (2402) Porto Carras 2010}) 13. f4 {[%emt 0:13:14]} Nc6 {[%emt 0:02:45] [#]} 14. f5 $1 {[%emt 0:08:37]} Nxd4 {[%emt 0:01:38]} 15. Bxd4 {[%emt 0:00:28]} Re8 {[%emt 0:17:29]} 16. Qf2 {[%emt 0:19:35]} Bd8 {[%emt 0:05:20]} 17. Qg3 {[%emt 0:01:20]} e5 {[%emt 0:01:44]} 18. Be3 {[%emt 0:02:25]} Kf8 {[%emt 0:01:53]} 19. Bg5 $16 {[%emt 0:06:15]} (19. Qh3 $18 {is more deadly.}) 19... Bb7 {[%emt 0:04:54]} 20. Bxf6 {[%emt 0:02:02]} Bxf6 {[%emt 0:00:52]} 21. Nd5 {[%emt 0:00:21]} Bxd5 {[%emt 0:00:47]} 22. Rxd5 {[%emt 0:00:20]} Rab8 {[%emt 0:01:59]} 23. Qd3 {[%emt 0:00:24]} a5 {[%emt 0:05:41]} 24. Rxd6 {[%emt 0:01:28]} Qc5+ {[%emt 0:00:37]} 25. Kh1 {[%emt 0:00:17]} Rbd8 {[%emt 0:00:49]} 26. Rd5 {[%emt 0:00:59]} Rxd5 {[%emt 0:00:45]} 27. Bxd5 {[%emt 0:02:21]} h5 {[%emt 0:01:10]} 28. c3 {[%emt 0:02:44]} h4 {[%emt 0:01:41]} 29. Qc4 {[%emt 0:07:38]} Qe3 {[%emt 0:02:06]} 30. Bxf7 {[%emt 0:07:14]} Rb8 {[%emt 0:10:10]} 31. Bh5 {[%emt 0:00:24]} g6 {[%emt 0:01:29]} 32. Bxg6 {[%emt 0:00:48]} 1-0

[Event "4th Memorial Warakomska-B 2020"]
[Site "Suwalki"]
[Date "2020.08.10"]
[Round "6.8"]
[White "Bancarewicz, Aleks"]
[Black "Kasperczyk, Szymon"]
[Result "1-0"]
[ECO "B38"]
[WhiteElo "1781"]
[BlackElo "1711"]
[Annotator "NA"]
[PlyCount "81"]
[EventDate "2020.08.06"]
[EventType "swiss"]
[EventCountry "POL"]
[SourceTitle "playchess.com"]
[Source "ChessBase"]
[SourceQuality "1"]
[TimeControl "40/5400+30:1800+30"]

1. e4 {[%emt 0:00:00]} c5 {[%emt 0:08:06]} 2. Nf3 {[%emt 0:00:00]} Nc6 {[%emt 0:00:04]} 3. d4 {[%emt 0:00:00]} cxd4 {[%emt 0:00:08]} 4. Nxd4 {[%emt 0:00:00]} g6 {[%emt 0:00:45]} 5. c4 {[%emt 0:00:08]} Bg7 {[%emt 0:00:07]} 6. Be3 {[%emt 0:00:17]} d6 {[%emt 0:00:10]} 7. Nc3 {[%emt 0:02:19]} Nf6 {[%emt 0:00:22]} 8. Be2 {[%emt 0:03:38]} Qa5 {[%emt 0:00:59]} 9. O-O {[%emt 0:08:13]} Nxd4 {[%emt 0:04:29]} 10. Bxd4 {[%emt 0:11:11]} Be6 {[%emt 0:00:59]} 11. Rc1 {[%emt 0:03:45]} O-O {[%emt 0:04:00]} 12. f4 {[%emt 0:03:15]} Nd7 {[%emt 0:05:33]} 13. f5 {[%emt 0:05:39]} gxf5 {[%emt 0:01:51]} 14. exf5 {[%emt 0:00:50]} Bxf5 {[%emt 0:00:09]} 15. b4 {[%emt 0:00:17]} Bxd4+ {[%emt 0:03:25]} 16. Qxd4 {[%emt 0:01:30]} Qa3 {[%emt 0:00:04]} 17. Nb5 {[%emt 0:04:28]} Qxa2 {[%emt 0:05:55]} 18. Rxf5 {[%emt 0:03:17]} Ne5 {[%emt 0:00:30]} 19. Bf1 {[%emt 0:21:03]} Kh8 {[%emt 0:07:20]} 20. c5 {[%emt 0:07:05]} Qe6 {[%emt 0:02:13]} 21. Rh5 {[%emt 0:04:08]} Qg6 {[%emt 0:03:06]} 22. Rh3 {[%emt 0:00:50]} f6 {[%emt 0:00:05]} 23. cxd6 {[%emt 0:02:17]} exd6 {[%emt 0:00:42]} 24. Bd3 {[%emt 0:04:02]} Nxd3 {[%emt 0:03:02]} 25. Qxd3 {[%emt 0:00:48]} Qxd3 {[%emt 0:05:09]} 26. Rxd3 {[%emt 0:00:01]} a5 {[%emt 0:01:04]} 27. Nc7 {[%emt 0:03:37]} Rfc8 {[%emt 0:02:20]} 28. b5 {[%emt 0:00:49]} b6 {[%emt 0:01:33]} 29. Rxd6 {[%emt 0:01:50]} Ra7 {[%emt 0:01:08]} 30. Rdc6 {[%emt 0:00:16]} a4 {[%emt 0:01:00]} 31. Nd5 {[%emt 0:05:40]} Rd8 {[%emt 0:00:53]} 32. Nxf6 {[%emt 0:01:01]} a3 {[%emt 0:00:55]} 33. Rc7 {[%emt 0:00:22]} Rda8 {[%emt 0:00:13]} 34. R7c2 {[%emt 0:02:23]} Ra5 {[%emt 0:07:29]} 35. Rb1 {[%emt 0:00:54]} a2 {[%emt 0:01:01]} 36. Ra1 {[%emt 0:00:05]} Rxb5 {[%emt 0:02:20]} 37. Rc7 {[%emt 0:01:59]} Rb1+ {[%emt 0:01:53]} 38. Kf2 {[%emt 0:00:03]} Rb2+ {[%emt 0:00:29]} 39. Kg3 {[%emt 0:00:15]} Ra3+ {[%emt 0:04:28]} 40. Kh4 {[%emt 0:00:00]} Ra4+ {[%emt 0:00:00]} 41. Kh3 {[%emt 0:01:02]} 1-0

[Event "4th Memorial Warakomska-B 2020"]
[Site "Suwalki"]
[Date "2020.08.10"]
[Round "6.9"]
[White "Czech, Mieczyslaw"]
[Black "Racis, Michal"]
[Result "1-0"]
[ECO "C42"]
[WhiteElo "1863"]
[BlackElo "1453"]
[Annotator "NA"]
[PlyCount "193"]
[EventDate "2020.08.06"]
[EventType "swiss"]
[EventCountry "POL"]
[SourceTitle "playchess.com"]
[Source "ChessBase"]
[SourceQuality "1"]
[TimeControl "40/5400+30:1800+30"]

1. e4 {[%emt 0:00:00]} e5 {[%emt 0:00:00]} 2. Nf3 {[%emt 0:00:00]} Nf6 {[%emt 0:00:29]} 3. Nxe5 {[%emt 0:00:31]} d6 {[%emt 0:00:20]} 4. Nf3 {[%emt 0:00:15]} Nxe4 {[%emt 0:00:09]} 5. Qe2 {[%emt 0:01:32]} Qe7 {[%emt 0:00:59]} 6. d3 {[%emt 0:00:41]} Nf6 {[%emt 0:05:57]} 7. Bg5 {[%emt 0:00:31]} Qxe2+ {[%emt 0:00:10]} 8. Bxe2 {[%emt 0:00:30]} Be7 {[%emt 0:00:30]} 9. O-O {[%emt 0:00:45]} O-O {[%emt 0:00:29]} 10. Re1 {[%emt 0:00:23] C42: Petroff Defence: 3 Nxe5 and unusual White 3rd moves.} Re8 {[%emt 0:20:26]} 11. Nbd2 {[%emt 0:01:18]} Bd7 {[%emt 0:14:25]} 12. d4 {[%emt 0:01:36]} h6 {[%emt 0:07:35] [#]} 13. Bh4 $146 {[%emt 0:00:37]} ({Predecessor:} 13. Bxf6 Bxf6 14. Bd3 Nc6 15. c3 d5 16. Nb3 b6 17. Nbd2 Rxe1+ 18. Rxe1 Re8 19. Kf1 Kf8 20. Rxe8+ Kxe8 {½-½ (31) Stoynov,I (2300)-Badev,K (2320) Sunny Beach 2009}) 13... g5 {[%emt 0:01:46]} 14. Bg3 {[%emt 0:00:17]} Nh5 {[%emt 0:03:16]} 15. Nf1 {[%emt 0:11:44]} Bf6 {[%emt 0:12:12]} 16. c3 {[%emt 0:01:05]} Nc6 {[%emt 0:07:34]} 17. N3d2 {[%emt 0:04:05]} Nxg3 {[%emt 0:01:14]} 18. Nxg3 {[%emt 0:01:04]} Ne7 {[%emt 0:04:11]} 19. Bd3 {[%emt 0:00:44]} (19. Nde4 $16 Bg7 20. Nh5) 19... Ng6 {[%emt 0:03:55]} 20. Nde4 {[%emt 0:07:43]} Bg7 {[%emt 0:01:40]} 21. Nh5 {[%emt 0:01:19]} Kf8 {[%emt 0:04:32]} 22. Nef6 {[%emt 0:03:10]} Bxf6 {[%emt 0:00:47]} 23. Nxf6 {[%emt 0:00:40]} Rxe1+ {[%emt 0:00:52]} 24. Rxe1 {[%emt 0:00:20]} Rd8 {[%emt 0:01:03]} 25. Bxg6 {[%emt 0:13:52]} fxg6 {[%emt 0:00:20]} 26. f3 {[%emt 0:05:35]} Kf7 {[%emt 0:01:11]} 27. Nd5 {[%emt 0:01:32]} c6 {[%emt 0:00:57]} 28. Ne3 {[%emt 0:01:07]} Bf5 {[%emt 0:02:08]} 29. Kf2 {[%emt 0:00:43]} Rd7 {[%emt 0:02:17]} 30. g4 {[%emt 0:00:27]} Be6 {[%emt 0:01:12]} 31. c4 {[%emt 0:01:11]} Kf6 {[%emt 0:00:23]} 32. Rc1 {[%emt 0:02:09]} Bf7 {[%emt 0:01:14]} 33. b3 {[%emt 0:03:09]} Be8 {[%emt 0:01:10]} 34. Re1 {[%emt 0:01:02]} Bf7 {[%emt 0:00:10]} 35. Nf1 {[%emt 0:01:50]} Re7 {[%emt 0:00:55]} 36. Re4 {[%emt 0:00:57]} b5 {[%emt 0:00:42]} 37. Rxe7 {[%emt 0:02:59]} Kxe7 {[%emt 0:00:05]} 38. Nd2 {[%emt 0:00:02]} a5 {[%emt 0:00:29]} 39. a3 {[%emt 0:00:26]} a4 {[%emt 0:00:32]} 40. cxb5 {[%emt 0:00:00]} cxb5 {[%emt 0:00:00]} 41. bxa4 {[%emt 0:01:50]} bxa4 {[%emt 0:00:14]} 42. Ke3 {[%emt 0:00:11]} Bd5 {[%emt 0:01:38]} 43. Kd3 {[%emt 0:00:52]} Ke6 {[%emt 0:20:28]} 44. Ke3 {[%emt 0:06:24]} Ke7 {[%emt 0:04:11]} 45. Ne4 {[%emt 0:00:21]} Ke6 {[%emt 0:02:05]} 46. Kd3 {[%emt 0:02:14]} Ke7 {[%emt 0:01:19]} 47. Kc3 {[%emt 0:00:34]} Ke6 {[%emt 0:00:56]} 48. Kb4 {[%emt 0:00:41]} Bc6 {[%emt 0:01:55]} 49. Kc3 {[%emt 0:00:43]} Bd5 {[%emt 0:00:23]} 50. Kd3 {[%emt 0:00:23]} Ke7 {[%emt 0:00:32]} 51. Ke3 {[%emt 0:00:45]} Ke6 {[%emt 0:00:10]} 52. Nc3 {[%emt 0:02:24]} Bc6 {[%emt 0:00:25]} 53. Ke2 {[%emt 0:01:32]} Bd7 {[%emt 0:01:44]} 54. Kd3 {[%emt 0:00:28]} Bc6 {[%emt 0:00:20]} 55. Ke3 {[%emt 0:00:19]} d5 {[%emt 0:02:11]} 56. Kd3 {[%emt 0:01:19]} Kd6 {[%emt 0:00:20]} 57. Ke3 {[%emt 0:01:30]} Ke6 $1 {[%emt 0:00:08]} 58. Kd2 {[%emt 0:00:49]} Ke7 {[%emt 0:00:21]} 59. Kc2 {[%emt 0:00:42]} Kd7 {[%emt 0:00:21]} 60. Nb1 {[%emt 0:00:18]} Bb5 {[%emt 0:00:19]} 61. Kc3 {[%emt 0:00:18]} Be2 {[%emt 0:00:15]} 62. Nd2 {[%emt 0:00:02]} Bd1 {[%emt 0:00:11]} 63. Kb4 {[%emt 0:00:56]} Kc6 {[%emt 0:00:42]} 64. Kc3 {[%emt 0:01:10]} Kd6 {[%emt 0:00:07]} 65. Kd3 {[%emt 0:00:17]} Ke6 {[%emt 0:00:15]} 66. Ke3 {[%emt 0:00:21]} Kf6 {[%emt 0:00:35]} 67. Nb1 {[%emt 0:00:28]} Ke6 {[%emt 0:00:55]} 68. Nc3 {[%emt 0:00:10]} Bb3 {[%emt 0:00:07]} 69. Ne2 {[%emt 0:00:29]} Bd1 {[%emt 0:00:30]} (69... Bc4 $11) 70. Nc1 {[%emt 0:00:10]} Ke7 {[%emt 0:01:16]} 71. Nd3 {[%emt 0:00:07]} Ke6 {[%emt 0:00:26]} (71... Kf6 $16 72. Ne5 Kg7) 72. Ne5 {[%emt 0:00:11]} Kf6 {[%emt 0:00:30]} 73. Kd2 {[%emt 0:00:14]} Bb3 {[%emt 0:00:16]} 74. Kc3 {[%emt 0:00:03]} Bd1 {[%emt 0:00:22] [#]} (74... h5 $16) 75. Kb4 {[%emt 0:00:42]} (75. Kd3 $1 $16) 75... Bc2 {[%emt 0:00:34]} 76. Kc5 {[%emt 0:00:26]} Ke6 {[%emt 0:00:34]} 77. Kc6 {[%emt 0:00:14]} Bb1 {[%emt 0:00:37] [#]} 78. Kc7 $2 {[%emt 0:00:19]} (78. Nd7 $1 $18 {and the rest is easy.}) 78... Ke7 $2 {[%emt 0:01:08] [#]} ({Black should play} 78... Bc2 $14) 79. Nc6+ $1 {[%emt 0:00:48]} Ke6 {[%emt 0:00:13]} 80. Nb4 {[%emt 0:00:33]} h5 {[%emt 0:00:58]} 81. h3 {[%emt 0:00:46]} hxg4 {[%emt 0:00:36]} 82. hxg4 {[%emt 0:00:14]} Kf7 {[%emt 0:00:46]} 83. Kd6 {[%emt 0:00:11]} Be4 {[%emt 0:00:25]} 84. fxe4 {[%emt 0:00:28]} dxe4 {[%emt 0:00:06]} 85. Nc2 {[%emt 0:00:21]} Kf6 {[%emt 0:00:07]} 86. d5 {[%emt 0:00:25]} Kf7 {[%emt 0:00:09]} 87. Ke5 {[%emt 0:00:24]} Ke7 {[%emt 0:00:08]} 88. Kxe4 {[%emt 0:00:10]} Kd6 {[%emt 0:00:05]} 89. Kd4 {[%emt 0:00:16]} Kd7 {[%emt 0:00:08]} 90. Kc5 {[%emt 0:00:20]} Kc7 {[%emt 0:00:08]} 91. d6+ {[%emt 0:00:33]} Kd7 {[%emt 0:00:01]} 92. Nd4 {[%emt 0:00:27]} Kd8 {[%emt 0:00:08]} 93. Kc6 {[%emt 0:00:26]} Kc8 {[%emt 0:00:03]} 94. Ne6 {[%emt 0:00:26]} Kb8 {[%emt 0:00:13]} 95. d7 Ka7 96. d8=Q {[%emt 0:01:21]} Ka6 {[%emt 0:00:38]} 97. Qb6# {[%emt 0:00:13]} 1-0

[Event "4th Memorial Warakomska-B 2020"]
[Site "Suwalki"]
[Date "2020.08.10"]
[Round "6.10"]
[White "Siekanska, Zuzanna"]
[Black "Milewski, Karol"]
[Result "0-1"]
[ECO "D08"]
[WhiteElo "1680"]
[BlackElo "1795"]
[Annotator "NA"]
[PlyCount "78"]
[EventDate "2020.08.06"]
[EventType "swiss"]
[EventCountry "POL"]
[SourceTitle "playchess.com"]
[Source "ChessBase"]
[SourceQuality "1"]
[TimeControl "40/5400+30:1800+30"]

1. d4 {[%emt 0:00:00]} d5 {[%emt 0:00:41]} 2. c4 {[%emt 0:00:00]} e5 {[%emt 0:00:06]} 3. e3 {[%emt 0:06:31]} Nc6 {[%emt 0:07:03]} 4. cxd5 {[%emt 0:02:03]} Qxd5 {[%emt 0:00:21]} 5. Nc3 {[%emt 0:01:09]} Bb4 {[%emt 0:01:30]} 6. Bd2 {[%emt 0:00:36]} Bxc3 {[%emt 0:00:59]} 7. bxc3 {[%emt 0:01:30]} exd4 {[%emt 0:08:35]} 8. cxd4 {[%emt 0:01:18]} Nf6 {[%emt 0:04:11]} 9. Ne2 {[%emt 0:01:24]} Bf5 {[%emt 0:07:26]} 10. Nc3 {[%emt 0:02:08]} Qd7 {[%emt 0:04:35]} 11. Qb3 {[%emt 0:09:28]} O-O {[%emt 0:07:54]} 12. Be2 {[%emt 0:08:13]} a6 {[%emt 0:09:29]} 13. O-O {[%emt 0:00:41]} b5 {[%emt 0:07:05]} 14. Rac1 {[%emt 0:09:01]} Be6 {[%emt 0:11:09]} 15. Qb1 {[%emt 0:01:54]} Bf5 {[%emt 0:04:08]} 16. Qb2 {[%emt 0:02:03]} Rab8 {[%emt 0:04:43]} 17. Rfd1 {[%emt 0:06:19]} b4 {[%emt 0:05:57]} 18. Nb1 {[%emt 0:08:14]} a5 {[%emt 0:02:27]} 19. a3 {[%emt 0:04:55]} Rfe8 {[%emt 0:04:18]} 20. Bf3 {[%emt 0:01:41]} Ne4 {[%emt 0:01:40]} 21. axb4 {[%emt 0:02:43]} axb4 {[%emt 0:02:10]} 22. Bxe4 {[%emt 0:03:48]} Bxe4 {[%emt 0:00:20]} 23. f3 {[%emt 0:00:26]} Bd3 {[%emt 0:02:18]} 24. Rc5 {[%emt 0:03:02]} Nd8 {[%emt 0:01:37]} 25. Qb3 {[%emt 0:00:36]} Bg6 {[%emt 0:00:43]} 26. Rdc1 {[%emt 0:03:07]} Ne6 {[%emt 0:00:23]} 27. Rc6 {[%emt 0:01:24]} Nxd4 {[%emt 0:00:49]} 28. exd4 {[%emt 0:01:20]} Qxd4+ {[%emt 0:00:05]} 29. Kh1 {[%emt 0:00:12]} Bxb1 {[%emt 0:00:21]} 30. Qxb1 {[%emt 0:00:36]} Qxd2 {[%emt 0:00:19]} 31. Rxc7 {[%emt 0:00:26]} b3 {[%emt 0:01:05]} 32. h3 {[%emt 0:03:20]} Rbd8 {[%emt 0:00:56]} 33. Qf5 {[%emt 0:03:56]} Re1+ {[%emt 0:00:29]} 34. Rxe1 {[%emt 0:01:24]} Qxe1+ {[%emt 0:00:03]} 35. Kh2 {[%emt 0:00:05]} Qe8 {[%emt 0:00:54]} 36. Rb7 {[%emt 0:01:10]} Rb8 {[%emt 0:00:34]} 37. Qe4 {[%emt 0:02:15]} Qc8 {[%emt 0:00:34]} 38. Ra7 {[%emt 0:03:40]} b2 {[%emt 0:00:29]} 39. Qe7 {[%emt 0:01:00]} Qf8 {[%emt 0:00:29]} 0-1

[Event "4th Memorial Warakomska-B 2020"]
[Site "Suwalki"]
[Date "2020.08.10"]
[Round "6.11"]
[White "Stefaniuk, Zbigniew"]
[Black "Milanowski, Jan"]
[Result "1-0"]
[ECO "B07"]
[WhiteElo "1538"]
[BlackElo "1787"]
[Annotator "NA"]
[PlyCount "72"]
[EventDate "2020.08.06"]
[EventType "swiss"]
[EventCountry "POL"]
[SourceTitle "playchess.com"]
[Source "ChessBase"]
[SourceQuality "1"]
[TimeControl "40/5400+30:1800+30"]

1. e4 {[%emt 0:00:00]} d6 {[%emt 0:00:00]} 2. d4 {[%emt 0:00:01]} Nf6 {[%emt 0:00:11]} 3. Nc3 {[%emt 0:00:40]} c6 {[%emt 0:00:09]} 4. f4 {[%emt 0:00:51]} Qa5 {[%emt 0:00:26]} 5. e5 {[%emt 0:01:45]} Ne4 {[%emt 0:01:10]} 6. Qf3 {[%emt 0:01:16]} d5 {[%emt 0:00:41]} 7. Bd3 {[%emt 0:01:11]} Nxc3 {[%emt 0:02:42]} 8. Bd2 {[%emt 0:01:09]} e6 {[%emt 0:00:14]} 9. Ne2 {[%emt 0:05:25]} a6 {[%emt 0:00:29]} 10. Nxc3 {[%emt 0:02:55]} Qb6 {[%emt 0:03:12]} 11. Qf2 {[%emt 0:12:43]} Bd7 {[%emt 0:03:45]} 12. Na4 {[%emt 0:04:19]} Qc7 {[%emt 0:00:09]} 13. Nc5 {[%emt 0:11:48]} g6 {[%emt 0:00:22]} 14. h4 {[%emt 0:04:15]} h5 {[%emt 0:02:02]} 15. O-O-O {[%emt 0:08:26]} b6 {[%emt 0:00:35]} 16. Nxd7 {[%emt 0:02:42]} Nxd7 {[%emt 0:00:02]} 17. Kb1 {[%emt 0:03:11]} b5 {[%emt 0:01:30]} 18. Qg3 {[%emt 0:06:15]} c5 {[%emt 0:01:11]} 19. c3 {[%emt 0:02:24]} Nb6 {[%emt 0:00:52]} 20. Qh3 {[%emt 0:08:42]} Qd7 {[%emt 0:07:24]} 21. g4 {[%emt 0:02:16]} c4 {[%emt 0:00:24]} 22. Bc2 {[%emt 0:01:52]} a5 {[%emt 0:00:20]} 23. Rdg1 {[%emt 0:06:30]} hxg4 {[%emt 0:02:35]} 24. Qxg4 {[%emt 0:01:02]} b4 {[%emt 0:00:48]} 25. h5 {[%emt 0:02:27]} gxh5 {[%emt 0:03:08]} 26. Rxh5 {[%emt 0:00:17]} Rxh5 {[%emt 0:00:05]} 27. Qxh5 {[%emt 0:00:14]} O-O-O {[%emt 0:04:15]} 28. f5 {[%emt 0:02:44]} Na4 {[%emt 0:01:08]} 29. Bxa4 {[%emt 0:01:07]} Qxa4 {[%emt 0:00:05]} 30. Qxf7 {[%emt 0:00:37]} exf5 {[%emt 0:01:10]} 31. Qxf5+ {[%emt 0:00:19]} Kb8 {[%emt 0:00:09]} 32. e6 {[%emt 0:00:56]} b3 {[%emt 0:00:30]} 33. Bf4+ {[%emt 0:00:41]} Ka8 {[%emt 0:00:24]} 34. a3 {[%emt 0:00:51]} Bxa3 {[%emt 0:00:19]} 35. bxa3 {[%emt 0:00:23]} Qxa3 {[%emt 0:00:02]} 36. Rg2 {[%emt 0:00:36]} Rh8 1-0

[Event "4th Memorial Warakomska-B 2020"]
[Site "Suwalki"]
[Date "2020.08.10"]
[Round "6.12"]
[White "Kotarski, Bartosz"]
[Black "Jasiulewicz, Dawid"]
[Result "1-0"]
[ECO "B92"]
[WhiteElo "1742"]
[BlackElo "1374"]
[Annotator "NA"]
[PlyCount "69"]
[EventDate "2020.08.06"]
[EventType "swiss"]
[EventCountry "POL"]
[SourceTitle "playchess.com"]
[Source "ChessBase"]
[SourceQuality "1"]
[TimeControl "40/5400+30:1800+30"]

1. e4 {[%emt 0:00:00]} c5 {[%emt 0:00:00]} 2. Nf3 {[%emt 0:00:00]} d6 {[%emt 0:00:00]} 3. d4 {[%emt 0:00:00]} cxd4 {[%emt 0:00:00]} 4. Nxd4 {[%emt 0:00:00]} Nf6 {[%emt 0:00:02]} 5. Nc3 {[%emt 0:00:00]} a6 {[%emt 0:00:06]} 6. Be2 {[%emt 0:01:19]} e5 {[%emt 0:00:53]} 7. Nb3 {[%emt 0:00:10]} Be6 {[%emt 0:00:34]} 8. Bg5 {[%emt 0:04:17]} Be7 {[%emt 0:01:51]} 9. Qd2 {[%emt 0:01:03]} O-O {[%emt 0:02:52]} 10. O-O-O {[%emt 0:00:51]} Nbd7 {[%emt 0:00:47]} 11. f4 {[%emt 0:03:16]} h6 {[%emt 0:04:47]} 12. fxe5 {[%emt 0:03:28]} dxe5 {[%emt 0:00:59]} 13. Be3 {[%emt 0:00:12]} Rc8 {[%emt 0:01:17]} 14. Qe1 {[%emt 0:07:38]} Qc7 {[%emt 0:01:39]} 15. Bf3 {[%emt 0:01:22]} Nb6 {[%emt 0:06:11]} 16. Qg3 {[%emt 0:05:33]} Ba3 {[%emt 0:11:04]} 17. Rd3 {[%emt 0:06:50]} Bc4 {[%emt 0:05:11]} 18. Bxh6 {[%emt 0:00:52]} g6 {[%emt 0:00:33]} 19. Re3 {[%emt 0:01:25]} Bc5 {[%emt 0:03:24]} 20. Nxc5 {[%emt 0:02:38]} Qxc5 {[%emt 0:00:16]} 21. h4 {[%emt 0:00:18]} Kh7 {[%emt 0:05:47]} 22. Bg5 {[%emt 0:02:19]} Kg7 {[%emt 0:04:04]} 23. Ree1 {[%emt 0:13:54]} Rh8 {[%emt 0:05:07]} 24. h5 {[%emt 0:04:33]} Nbd7 {[%emt 0:01:40]} 25. Bxf6+ {[%emt 0:05:22]} Nxf6 {[%emt 0:00:14]} 26. Qg5 {[%emt 0:00:14]} Rh6 {[%emt 0:05:51]} 27. g4 {[%emt 0:05:13]} Nh7 {[%emt 0:01:55]} 28. Qd2 {[%emt 0:02:22]} g5 {[%emt 0:01:27]} 29. Kb1 {[%emt 0:05:16]} Rd6 {[%emt 0:08:32]} 30. Nd5 {[%emt 0:00:29]} Kh6 {[%emt 0:03:46]} 31. b4 {[%emt 0:08:06]} Qd4 {[%emt 0:04:53]} 32. Qxd4 {[%emt 0:00:13]} exd4 {[%emt 0:00:07]} 33. Ne7 {[%emt 0:00:07]} Be6 {[%emt 0:00:11]} 34. Nxc8 {[%emt 0:00:06]} Bxc8 {[%emt 0:00:04]} 35. Rd1 {[%emt 0:03:17]} 1-0